bitfinex/quotes_SOLUSD_20240620
["timestamp","ask_amount","ask_price","bid_price","bid_amount"]
[1718906171323,0.8265353,134.76,134.68,112.01]
[1718906171631,0.8265353,134.76,134.69,65.51]
[1718906171946,0.8265353,134.76,134.7,27.82]
[1718906172113,0.8265353,134.76,134.71,21.48775594]
[1718906173241,0.8265353,134.76,134.73,27.82]
[1718906173423,0.8265353,134.76,134.74,65.17]
[1718906173623,0.8265353,134.76,134.75,1.49092482]
[1718906174328,8.58236382,134.89,134.75,0.51]
[1718906174531,0.82163197,134.89,134.78,27.82]
[1718906174719,0.82163197,134.89,134.79,20.0]
[1718906175541,0.82163197,134.89,134.76,20.0]
[1718906175718,0.82163197,134.89,134.77,45.17]
[1718906175921,0.82163197,134.89,134.78,20.0]
[1718906177235,0.82163197,134.89,134.79,1.9761251]
[1718906177442,0.82163197,134.89,134.78,20.0]
[1718906177817,73.64163197,134.89,134.76,20.0]
[1718906178022,45.82163197,134.89,134.76,20.0]
[1718906178242,73.64163197,134.89,134.76,20.0]
[1718906178730,0.82163197,134.89,134.76,20.0]
[1718906179042,0.82163197,134.89,134.78,27.82]
[1718906179338,49.6634,134.89,134.79,19.6855]
[1718906179644,27.82,134.86,134.72,21.6625]
[1718906179819,0.82163197,134.85,134.72,21.6625]
[1718906180220,45.82163197,134.85,134.72,21.6625]
[1718906180430,45.82163197,134.85,134.72,6.6467]
[1718906180931,15.2155,134.83,134.71,27.82]
[1718906181132,45.82163197,134.82,134.68,441.57163752]
[1718906181438,45.82163197,134.82,134.69,20.0]
[1718906182917,45.82163197,134.82,134.7,1.38960557]
[1718906183121,45.82163197,134.82,134.69,20.0]
[1718906184433,45.82163197,134.82,134.7,45.51]
[1718906184632,45.82163197,134.82,134.71,24.92775364]
[1718906184820,0.82163197,134.82,134.71,20.0]
[1718906185016,45.82163197,134.82,134.71,20.0]
[1718906185220,45.82163197,134.82,134.72,45.0]
[1718906185421,45.82163197,134.82,134.73,20.0]
[1718906186018,45.82163197,134.82,134.7,0.51]
[1718906186422,45.82163197,134.82,134.7,0.17]
[1718906186634,45.82163197,134.82,134.7,45.17]
[1718906186851,34.4615,134.81,134.71,20.0]
[1718906187057,17.04713197,134.8,134.72,1.48914183]
[1718906187222,45.82163197,134.79,134.71,20.0]
[1718906187426,45.82163197,134.79,134.66,42.39]
[1718906188034,45.82163197,134.79,134.67,0.17]
[1718906188246,45.82163197,134.79,134.67,0.34]
[1718906188550,45.82163197,134.79,134.67,45.34]
[1718906188756,45.82163197,134.79,134.68,20.0]
[1718906188929,6.2587,134.78,134.68,20.0]
[1718906189126,27.82,134.76,134.68,20.0]
[1718906189336,45.82163197,134.75,134.65,20.0]
[1718906189658,0.82163197,134.75,134.63,20.0]
[1718906189832,28.64163197,134.75,134.63,20.0]
[1718906190031,28.64163197,134.75,134.62,20.0]
[1718906190234,6.1222,134.73,134.62,20.0]
[1718906190441,45.82163197,134.72,134.61,20.0]
[1718906190954,0.82163197,134.72,134.61,42.39]
[1718906191231,6.94383197,134.73,134.61,42.39]
[1718906191639,6.1222,134.73,134.62,0.17]
[1718906191842,6.1222,134.73,134.63,22.39]
[1718906192044,6.1222,134.73,134.64,87.9]
[1718906192236,6.1222,134.73,134.65,46.65473303]
[1718906192437,6.1222,134.73,134.66,20.17]
[1718906192655,6.1222,134.73,134.67,1.48451253]
[1718906193032,22.2308,134.77,134.67,1.48451253]
[1718906193360,22.2308,134.77,134.68,0.51]
[1718906193535,23.05243197,134.77,134.68,20.17]
[1718906193739,0.82163197,134.76,134.68,20.17]
[1718906193937,0.82163197,134.76,134.68,20.0]
[1718906194154,0.82163197,134.76,134.61,423.499991]
[1718906194155,27.82,134.75,134.62,20.0]
[1718906194356,27.82,134.75,134.64,22.39]
[1718906194539,27.82,134.75,134.65,87.9]
[1718906194857,27.82,134.75,134.66,0.17]
[1718906195045,27.82,134.75,134.66,45.51]
[1718906195232,27.82,134.75,134.67,20.0]
[1718906195441,27.82,134.75,134.66,0.17]
[1718906195756,0.82163197,134.74,134.65,20.0]
[1718906195933,0.82163197,134.74,134.62,20.0]
[1718906196346,28.64163197,134.75,134.63,22.39]
[1718906196547,28.64163197,134.75,134.64,42.39]
[1718906196746,28.64163197,134.75,134.62,20.0]
[1718906197039,28.64163197,134.75,134.63,0.17]
[1718906197238,27.82,134.72,134.63,0.34]
[1718906198035,27.82,134.72,134.64,22.56]
[1718906198235,27.82,134.72,134.65,20.34]
[1718906199256,27.82,134.72,134.66,46.86381244]
[1718906199467,27.82,134.75,134.67,20.34]
[1718906200134,28.37167357,134.82,134.68,45.5501]
[1718906200457,22.5183,134.82,134.72,22.39]
[1718906200650,22.35971669,134.86,134.74,22.39]
[1718906200968,0.82163197,134.85,134.75,65.51]
[1718906201182,0.82163197,134.85,134.75,42.9]
[1718906201474,28.64163197,134.85,134.75,42.9]
[1718906201668,28.64163197,134.85,134.75,20.34]
[1718906201871,28.64163197,134.85,134.76,20.0]
[1718906202038,27.82,134.85,134.75,0.17]
[1718906202239,28.64163197,134.85,134.74,65.51]
[1718906202464,28.64163197,134.85,134.75,20.0]
[1718906202638,28.64163197,134.85,134.72,20.0]
[1718906202840,28.64163197,134.85,134.73,0.51]
[1718906203091,0.82163197,134.85,134.73,22.9]
[1718906203347,28.64163197,134.85,134.74,87.39]
[1718906203556,28.64163197,134.85,134.74,42.39]
[1718906203868,28.64163197,134.85,134.74,20.0]
[1718906204039,27.82,134.82,134.73,0.34]
[1718906204247,27.82,134.82,134.73,0.17]
[1718906204845,27.82,134.82,134.72,20.0]
[1718906205162,27.82,134.82,134.71,22.39]
[1718906205359,0.82163197,134.85,134.72,42.39]
[1718906205567,45.82163197,134.85,134.72,42.39]
[1718906205777,27.82,134.84,134.72,42.39]
[1718906206067,0.82163197,134.83,134.72,42.39]
[1718906206463,0.82163197,134.83,134.73,0.51]
[1718906207286,45.82163197,134.83,134.73,0.17]
[1718906207575,0.82163197,134.82,134.73,0.17]
[1718906207767,0.82163197,134.82,134.72,42.39]
[1718906208148,27.82,134.84,134.73,0.17]
[1718906208348,0.82163197,134.83,134.73,0.17]
[1718906208984,28.64163197,134.83,134.73,0.17]
[1718906209171,0.82163197,134.82,134.72,20.0]
[1718906209377,45.82163197,134.82,134.71,20.0]
[1718906209577,22.3286,134.79,134.71,20.0]
[1718906209790,27.82,134.77,134.67,20.0]
[1718906210077,27.82,134.77,134.67,22.39]
[1718906210286,28.64163197,134.77,134.67,22.39]
[1718906210661,28.64163197,134.77,134.66,645.0]
[1718906211246,28.64163197,134.77,134.66,667.39]
[1718906211475,28.64163197,134.77,134.67,20.51]
[1718906212775,27.82,134.77,134.67,42.9]
[1718906213154,22.3286,134.79,134.67,42.9]
[1718906213359,50.1486,134.79,134.69,22.39]
[1718906213682,50.1486,134.79,134.7,42.9]
[1718906214475,50.1486,134.79,134.7,42.56]
[1718906215269,50.1486,134.79,134.7,20.17]
[1718906215475,50.1486,134.79,134.7,0.17]
[1718906217480,0.82163197,134.78,134.67,42.39]
[1718906217689,27.82,134.76,134.68,0.17]
[1718906218172,27.82,134.76,134.68,0.34]
[1718906218494,27.82,134.76,134.67,42.39]
[1718906218794,27.82,134.76,134.67,20.0]
[1718906220665,0.82163197,134.75,134.67,20.0]
[1718906220864,0.82163197,134.75,134.66,0.17]
[1718906222482,0.82163197,134.75,134.65,20.0]
[1718906222687,27.82,134.73,134.65,20.0]
[1718906223095,27.82,134.73,134.65,42.39]
[1718906223391,27.82,134.73,134.66,0.17]
[1718906223594,27.82,134.73,134.65,20.0]
[1718906224166,0.82163197,134.78,134.65,20.0]
[1718906224393,27.82,134.74,134.65,20.0]
[1718906225459,0.82163197,134.73,134.65,20.0]
[1718906226481,45.82163197,134.73,134.65,20.0]
[1718906226790,22.8342,134.72,134.65,20.0]
[1718906226986,23.65583197,134.72,134.66,1.48333049]
[1718906227385,23.65583197,134.72,134.65,20.0]
[1718906228291,6.357,134.75,134.65,42.39]
[1718906228472,6.357,134.75,134.66,0.34]
[1718906228786,6.357,134.75,134.67,0.17]
[1718906229197,6.357,134.75,134.66,0.34]
[1718906229486,28.64163197,134.74,134.65,20.0]
[1718906229673,28.64163197,134.74,134.66,1.588527]
[1718906230179,28.64163197,134.74,134.65,20.0]
[1718906231185,0.82163197,134.75,134.65,20.0]
[1718906231385,73.64163197,134.75,134.66,0.17]
[1718906231571,28.64163197,134.75,134.66,0.17]
[1718906233378,28.64163197,134.75,134.66,1.9785757]
[1718906233784,28.64163197,134.75,134.66,3.46139361]
[1718906234777,28.64163197,134.75,134.66,0.17]
[1718906235188,27.82,134.75,134.66,0.34]
[1718906235372,27.82,134.75,134.66,1.74125831]
[1718906235373,28.64163197,134.75,134.66,1.74125831]
[1718906235573,6.558,134.79,134.68,22.39]
[1718906235781,16.0274,134.8,134.7,38.0643]
[1718906235782,43.8474,134.8,134.7,38.0643]
[1718906235976,43.8474,134.8,134.71,22.1884439]
[1718906236293,43.8474,134.8,134.71,21.8484439]
[1718906236693,43.8474,134.8,134.71,20.17]
[1718906237471,0.82163197,134.79,134.71,20.0]
[1718906238179,22.5656,134.83,134.72,0.17]
[1718906238376,0.82163197,134.82,134.72,0.51]
[1718906239075,0.82163197,134.82,134.72,0.17]
[1718906239492,0.82163197,134.82,134.72,0.34]
[1718906239671,50.3856,134.83,134.73,6.599]
[1718906239875,50.3856,134.83,134.74,20.0]
[1718906241598,0.82163197,134.82,134.74,20.0]
[1718906241776,45.82163197,134.82,134.75,1.40067231]
[1718906242887,45.82163197,134.82,134.74,20.0]
[1718906243087,0.82163197,134.82,134.74,20.0]
[1718906243695,16.0606,134.87,134.75,39.1828]
[1718906243887,16.0606,134.87,134.76,42.73]
[1718906244203,16.0606,134.87,134.76,20.0]
[1718906244204,27.82,134.86,134.76,20.0]
[1718906244387,0.82163197,134.85,134.76,20.0]
[1718906245174,45.82163197,134.85,134.76,20.0]
[1718906246100,45.0,134.85,134.76,20.0]
[1718906246303,33.8224,134.86,134.76,20.0]
[1718906246506,0.82163197,134.85,134.76,20.0]
[1718906246802,6.82403197,134.86,134.76,20.0]
[1718906247101,6.0024,134.86,134.77,0.17]
[1718906247301,0.8265353,134.9,134.78,22.39]
[1718906247485,0.8265353,134.9,134.79,20.34]
[1718906247794,1.64816727,134.9,134.79,20.0]
[1718906247979,27.82,134.88,134.79,20.0]
[1718906248182,0.82163197,134.87,134.78,20.0]
[1718906250904,0.82163197,134.89,134.8,6.526]
[1718906251093,0.82163197,134.89,134.81,20.0]
[1718906251413,7.4159,134.85,134.81,20.0]
[1718906251699,7.4151,134.86,134.81,20.0]
[1718906254704,7.4148,134.87,134.81,20.0]
[1718906255006,0.82163197,134.87,134.81,20.0]
[1718906255510,7.4153,134.86,134.81,20.0]
[1718906255902,44.79993197,134.87,134.81,20.0]
[1718906256094,7.4175,134.82,134.8,20.0]
[1718906256904,7.4169,134.83,134.8,20.0]
[1718906257284,7.4173,134.82,134.8,20.0]
[1718906257990,7.4178,134.81,134.8,20.0]
[1718906258199,7.4175,134.82,134.8,20.0]
[1718906258710,7.4178,134.81,134.8,20.0]
[1718906258909,7.4174,134.82,134.8,20.0]
[1718906259099,7.4164,134.84,134.8,20.0]
[1718906259297,7.4158,134.85,134.8,20.0]
[1718906259605,27.82,134.86,134.8,20.0]
[1718906259814,7.4164,134.84,134.8,20.0]
[1718906259986,7.4167,134.83,134.8,20.0]
[1718906260588,7.4173,134.82,134.8,20.0]
[1718906260795,7.4178,134.81,134.8,20.0]
[1718906261001,7.4174,134.82,134.8,20.0]
[1718906261304,7.417,134.83,134.8,20.0]
[1718906261708,7.4173,134.82,134.8,20.0]
[1718906263483,18.5378,134.86,134.8,20.0]
[1718906263997,19.35943197,134.86,134.8,20.0]
[1718906264412,7.417,134.83,134.8,20.0]
[1718906264788,7.4164,134.84,134.8,20.0]
[1718906265403,7.4167,134.83,134.8,20.0]
[1718906269508,7.4174,134.82,134.8,20.0]
[1718906269713,7.4168,134.83,134.8,20.0]
[1718906270594,7.4165,134.84,134.8,20.0]
[1718906271014,7.417,134.83,134.8,20.0]
[1718906272017,19.36173197,134.85,134.8,20.0]
[1718906272205,0.82163197,134.84,134.8,20.0]
[1718906272527,7.4174,134.82,134.8,20.0]
[1718906273391,7.4169,134.83,134.8,20.0]
[1718906273906,0.82163197,134.86,134.8,20.0]
[1718906274109,7.4152,134.86,134.8,20.0]
[1718906274320,48.89208959,134.91,134.8,20.0]
[1718906274538,7.4157,134.85,134.8,20.0]
[1718906275929,7.4153,134.86,134.8,20.0]
[1718906277725,7.4144,134.88,134.81,22.6123]
[1718906277900,7.4136,134.89,134.82,20.0]
[1718906278100,8.2397353,134.9,134.82,20.0]
[1718906278341,0.8265353,134.9,134.82,20.0]
[1718906278823,7.4135,134.89,134.82,20.0]
[1718906279534,0.8265353,134.9,134.82,20.0]
[1718906279839,7.414,134.88,134.82,20.0]
[1718906280200,7.4146,134.87,134.82,20.0]
[1718906280629,7.4147,134.87,134.82,20.0]
[1718906280800,7.4154,134.86,134.82,20.0]
[1718906281320,7.4148,134.87,134.82,20.0]
[1718906281926,7.4151,134.86,134.82,20.0]
[1718906282737,7.4151,134.86,134.81,22.7823]
[1718906282906,7.4151,134.86,134.82,20.17]
[1718906283329,7.4146,134.87,134.82,20.17]
[1718906284613,7.4164,134.84,134.82,20.0]
[1718906285305,7.4162,134.84,134.82,20.0]
[1718906285730,0.82163197,134.88,134.82,20.0]
[1718906285924,7.4151,134.86,134.82,20.0]
[1718906286128,47.17613197,134.89,134.82,20.0]
[1718906286338,7.4166,134.84,134.81,22.6123]
[1718906286519,7.4166,134.84,134.82,20.0]
[1718906286932,7.4159,134.85,134.82,20.0]
[1718906287508,7.4153,134.86,134.82,20.0]
[1718906288324,7.4159,134.85,134.82,20.0]
[1718906288520,7.4152,134.86,134.82,20.0]
[1718906288729,7.4152,134.86,134.83,1.4953864]
[1718906289436,7.4156,134.85,134.83,1.4953864]
[1718906290438,7.4153,134.86,134.83,1.4953864]
[1718906291432,16.6756,134.85,134.83,1.4953864]
[1718906292245,7.4161,134.84,134.82,20.0]
[1718906293021,16.6761,134.84,134.82,20.0]
[1718906294723,7.4167,134.83,134.82,20.0]
[1718906295034,16.6767,134.83,134.82,20.0]
[1718906295237,16.6767,134.83,134.79,20.0]
[1718906295450,9.26,134.82,134.79,20.0]
[1718906296739,9.26,134.81,134.79,20.0]
[1718906296955,89.6622,134.89,134.77,25.4655]
[1718906296956,18.5362,134.88,134.77,25.4655]
[1718906297152,9.26,134.84,134.77,16.2055]
[1718906297834,9.26,134.84,134.78,0.17]
[1718906298526,9.26,134.84,134.78,20.17]
[1718906300250,9.26,134.84,134.78,20.0]
[1718906300251,9.26,134.83,134.78,20.0]
[1718906300671,7.4159,134.85,134.78,20.0]
[1718906300853,9.26,134.84,134.78,29.26]
[1718906301654,9.26,134.83,134.78,20.0]
[1718906302035,9.26,134.82,134.78,20.0]
[1718906302845,89.6627,134.89,134.78,20.0]
[1718906302846,15.5542,134.89,134.79,6.6004]
[1718906303171,1.64816727,134.9,134.83,15.5185]
[1718906303460,16.6753,134.86,134.84,20.0]
[1718906303835,16.6756,134.85,134.84,20.0]
[1718906304032,16.6756,134.85,134.8,44.7785]
[1718906304256,7.4152,134.86,134.81,9.26]
[1718906304465,9.26,134.86,134.82,20.0]
[1718906304772,16.6752,134.86,134.82,20.0]
[1718906305546,7.416,134.85,134.81,20.0]
[1718906305747,9.26,134.84,134.81,20.0]
[1718906306040,18.5374,134.87,134.8,15.5185]
[1718906306239,9.26,134.85,134.8,15.5185]
[1718906306438,7.4153,134.86,134.8,24.7785]
[1718906306656,16.6753,134.86,134.8,24.7785]
[1718906306856,7.4158,134.85,134.8,24.7785]
[1718906307057,16.6771,134.83,134.8,15.5185]
[1718906307239,9.26,134.83,134.8,15.5185]
[1718906307438,0.82163197,134.86,134.81,20.0]
[1718906307644,7.4159,134.85,134.81,20.0]
[1718906308051,16.6759,134.85,134.81,20.0]
[1718906308362,16.6762,134.84,134.81,20.0]
[1718906308664,7.4162,134.84,134.81,20.0]
[1718906309048,16.6759,134.85,134.81,20.0]
[1718906309736,7.4164,134.84,134.81,20.0]
[1718906310136,10.08163197,134.85,134.81,20.0]
[1718906310355,10.08163197,134.85,134.79,9.26]
[1718906310356,9.26,134.84,134.8,20.0]
[1718906310562,7.4173,134.82,134.78,29.26]
[1718906310749,7.4179,134.81,134.78,29.26]
[1718906310953,7.4175,134.82,134.78,29.26]
[1718906311958,0.82163197,134.87,134.8,9.26]
[1718906312149,9.26,134.86,134.81,20.0]
[1718906312358,18.5371,134.87,134.81,20.0]
[1718906312666,7.4163,134.84,134.81,20.0]
[1718906312856,7.4163,134.84,134.8,20.0]
[1718906313060,7.4158,134.85,134.8,20.0]
[1718906313257,7.4158,134.85,134.8,29.26]
[1718906313460,16.6753,134.86,134.8,29.26]
[1718906313663,7.4153,134.86,134.81,9.26]
[1718906313852,16.6753,134.86,134.82,20.0]
[1718906314463,16.6753,134.86,134.81,20.0]
[1718906314765,9.26,134.86,134.81,20.0]
[1718906314971,7.4145,134.87,134.83,25.124]
[1718906315266,7.4145,134.87,134.84,20.0]
[1718906316953,7.4142,134.88,134.84,20.0]
[1718906317148,8.2397353,134.9,134.84,20.0]
[1718906317465,17.4996353,134.9,134.84,29.26]
[1718906317945,17.4996353,134.9,134.85,9.26]
[1718906318145,7.4135,134.89,134.86,20.0]
[1718906319368,0.8265353,134.9,134.86,20.0]
[1718906319752,0.8265353,134.9,134.86,9.26]
[1718906320076,8.2394353,134.9,134.87,20.0]
[1718906321267,8.2394353,134.9,134.87,26.504]
[1718906321268,0.8265353,134.9,134.87,26.504]
[1718906321657,0.8265353,134.9,134.89,25.6615]
[1718906321857,0.8265353,134.9,134.89,45.6615]
[1718906326674,0.8265353,134.9,134.89,36.4015]
[1718906326870,0.8265353,134.9,134.89,45.6615]
[1718906328582,0.8265353,134.9,134.89,20.0]
[1718906328774,8.2393353,134.9,134.86,20.0]
[1718906328979,8.2393353,134.9,134.86,29.26]
[1718906329171,8.2393353,134.9,134.86,20.0]
[1718906329371,8.2393353,134.9,134.86,29.26]
[1718906330063,0.8265353,134.9,134.87,9.26]
[1718906330375,0.8265353,134.9,134.88,29.26]
[1718906330576,0.8265353,134.9,134.88,20.0]
[1718906330970,0.8265353,134.9,134.89,9.26]
[1718906331164,0.8265353,134.9,134.89,29.26]
[1718906334975,0.8265353,134.9,134.89,20.0]
[1718906335182,0.8265353,134.9,134.86,7.4107]
[1718906335183,0.8265353,134.9,134.87,20.0]
[1718906335390,0.8265353,134.9,134.89,9.26]
[1718906335567,0.8265353,134.9,134.89,29.26]
[1718906335887,0.8265353,134.9,134.89,20.0]
[1718906336086,0.8265353,134.9,134.89,29.26]
[1718906339867,0.8265353,134.9,134.89,20.0]
[1718906340072,0.8265353,134.9,134.89,9.26]
[1718906340273,0.8265353,134.9,134.89,29.26]
[1718906340893,0.8265353,134.9,134.89,20.0]
[1718906341092,0.8265353,134.9,134.89,9.26]
[1718906341291,0.8265353,134.9,134.89,29.26]
[1718906341492,0.8265353,134.9,134.89,20.0]
[1718906341991,0.8265353,134.9,134.86,20.0]
[1718906342191,0.8265353,134.9,134.87,9.26]
[1718906342395,0.8265353,134.9,134.88,20.0]
[1718906342899,0.8265353,134.9,134.88,29.26]
[1718906343075,0.8265353,134.9,134.88,20.0]
[1718906343281,8.2395353,134.9,134.86,20.0]
[1718906343588,8.2395353,134.9,134.85,20.0]
[1718906343789,0.8265353,134.9,134.83,20.0]
[1718906343979,16.6736,134.89,134.84,9.26]
[1718906344179,0.8265353,134.9,134.85,20.0]
[1718906344391,8.2394353,134.9,134.83,20.0]
[1718906344907,7.4135,134.89,134.83,20.0]
[1718906345284,17.4996353,134.9,134.83,20.0]
[1718906345484,10.0865353,134.9,134.83,20.0]
[1718906345723,0.8265353,134.9,134.83,20.0]
[1718906346108,0.8265353,134.9,134.87,9.26]
[1718906346273,0.8265353,134.9,134.88,29.26]
[1718906346480,0.8265353,134.9,134.88,9.26]
[1718906346686,0.8265353,134.9,134.89,20.0]
[1718906347588,0.8265353,134.9,134.87,9.26]
[1718906347779,0.8265353,134.9,134.88,20.0]
[1718906348286,8.2398353,134.9,134.88,20.0]
[1718906348486,0.8265353,134.9,134.86,9.26]
[1718906348704,0.8265353,134.9,134.87,20.0]
[1718906348885,0.8265353,134.9,134.88,0.46065941]
[1718906349086,0.8265353,134.9,134.88,9.26]
[1718906349417,7.2482556,134.93,134.89,121.2834]
[1718906349418,0.8723556,134.93,134.89,121.2834]
[1718906349703,0.8150652,134.96,134.93,6.5748]
[1718906349997,0.8150652,134.96,134.95,9.26]
[1718906350185,0.8150652,134.96,134.95,30.17588914]
[1718906350383,0.8150652,134.96,134.95,74.77]
[1718906350804,0.8150652,134.96,134.95,29.77]
[1718906351188,0.8150652,134.96,134.95,20.0]
[1718906351383,0.8265353,135.03,134.96,6.2099]
[1718906351593,9.26,135.1,135.02,9.26]
[1718906351799,9.26,135.1,135.03,20.0]
[1718906352106,7.403,135.08,135.03,20.0]
[1718906352295,16.663,135.08,135.03,29.26]
[1718906352494,7.4037,135.07,135.03,9.26]
[1718906352696,16.6632,135.08,135.04,20.0]
[1718906352884,13.5844,135.07,135.04,20.0]
[1718906353089,6.1808,135.04,134.96,2.04771292]
[1718906353290,7.4075,135.0,134.96,2.04771292]
[1718906353598,7.4078,135.0,134.96,6.16370024]
[1718906353815,0.82163197,135.02,134.9,22.39]
[1718906353995,7.4079,134.99,134.91,4.11837768]
[1718906354305,18.5174,135.01,134.92,4.11856246]
[1718906354609,7.4081,134.99,134.93,4.11834816]
[1718906354817,7.4072,135.01,134.9,44.4101]
[1718906354993,0.82163197,135.03,134.91,42.39]
[1718906355195,7.4076,135.0,134.92,4.10979167]
[1718906355397,7.4076,135.0,134.93,4.10948708]
[1718906355701,7.4069,135.01,134.94,0.17]
[1718906355901,7.4069,135.01,134.92,22.56]
[1718906356108,7.4075,135.0,134.93,65.34]
[1718906356408,7.4075,135.0,134.94,20.17]
[1718906356623,7.4086,134.98,134.94,20.0]
[1718906356795,0.82163197,135.01,134.94,20.0]
[1718906356993,18.5199,134.99,134.95,0.55970045]
[1718906357495,18.5199,134.99,134.91,20.0]
[1718906357698,7.4096,134.96,134.92,4.58591794]
[1718906358007,18.5199,134.99,134.91,20.0]
[1718906358332,7.4107,134.94,134.88,20.0]
[1718906358618,7.4112,134.93,134.86,22.3058]
[1718906358795,0.82163197,134.96,134.86,22.3058]
[1718906359410,19.34693197,134.96,134.86,22.3058]
[1718906359615,7.4123,134.91,134.86,22.3058]
[1718906359912,7.4118,134.92,134.87,20.0]
[1718906360107,0.82163197,134.95,134.84,22.39]
[1718906360317,7.4118,134.92,134.83,28.4234]
[1718906360493,7.4118,134.92,134.83,6.0334]
[1718906360812,7.4124,134.91,134.83,6.0334]
[1718906360992,19.34823197,134.95,134.83,6.0334]
[1718906360993,7.4132,134.9,134.83,6.0334]
[1718906361193,7.4125,134.91,134.83,6.0334]
[1718906361408,7.4125,134.91,134.84,20.0]
[1718906361804,7.4129,134.9,134.85,1.4806842]
[1718906362595,27.73,134.96,134.84,20.0]
[1718906362596,7.4138,134.89,134.84,20.0]
[1718906362800,19.35233197,134.92,134.84,20.0]
[1718906362801,18.532,134.91,134.84,20.0]
[1718906363119,7.4142,134.88,134.81,21.29141851]
[1718906363500,7.4145,134.87,134.82,3.46330315]
[1718906363695,7.4145,134.87,134.81,21.29141851]
[1718906364197,7.4142,134.88,134.81,20.0]
[1718906364403,13.6794,134.9,134.82,3.56589003]
[1718906364610,7.4135,134.89,134.81,20.0]
[1718906364822,7.4141,134.88,134.81,20.0]
[1718906365506,7.4141,134.88,134.82,0.17]
[1718906366218,7.4146,134.87,134.82,0.17]
[1718906366511,7.4142,134.88,134.82,0.17]
[1718906366711,7.4146,134.87,134.81,20.0]
[1718906366912,7.4143,134.88,134.81,20.0]
[1718906367319,7.4146,134.87,134.81,20.0]
[1718906368405,7.4151,134.86,134.81,20.0]
[1718906368622,7.4151,134.86,134.8,20.17]
[1718906369206,7.4157,134.85,134.8,20.0]
[1718906369410,19.35623197,134.89,134.8,20.0]
[1718906369611,7.4153,134.86,134.8,20.0]
[1718906370009,0.82163197,134.89,134.8,20.0]
[1718906370712,7.4148,134.87,134.81,0.17]
[1718906371222,0.82163197,134.89,134.81,0.17]
[1718906371223,7.4153,134.86,134.81,0.17]
[1718906371525,7.4153,134.86,134.8,20.0]
[1718906372511,7.4147,134.87,134.8,20.0]
[1718906372820,7.4154,134.86,134.8,20.0]
[1718906373925,7.4146,134.87,134.8,20.0]
[1718906377509,7.4151,134.86,134.8,20.0]
[1718906377711,8.23503197,134.9,134.81,1.54848657]
[1718906378017,7.4134,134.9,134.82,0.17]
[1718906378323,7.4134,134.9,134.82,1.71847094]
[1718906379028,7.4137,134.89,134.82,1.71847094]
[1718906380410,7.4129,134.9,134.82,1.71847094]
[1718906380920,7.4129,134.9,134.82,21.71847094]
[1718906381314,7.4129,134.9,134.83,3.49574357]
[1718906381510,7.4129,134.9,134.83,23.49574357]
[1718906382108,7.4129,134.9,134.83,3.49574357]
[1718906382713,16.1959,134.94,134.84,15.1869]
[1718906382921,7.4121,134.92,134.85,21.12645212]
[1718906383129,17.01753197,134.94,134.86,0.6164064]
[1718906384232,7.4118,134.92,134.86,0.6164064]
[1718906384530,7.4118,134.92,134.85,26.6287]